[Event "FRA-ch Teams Top 16-A 2022"]
[Site "Chartres"]
[Date "2022.06.09"]
[Round "1.13"]
[White "Cantin, Loic"]
[Black "Bailet, Pierre"]
[Result "1/2-1/2"]
[ECO "E66"]
[WhiteElo "2199"]
[BlackElo "2509"]
[Annotator "TA"]
[PlyCount "142"]
[EventDate "2022.06.09"]
[EventType "team-tourn"]
[EventCountry "FRA"]
[SourceTitle "playchess.com"]
[Source "ChessBase"]
[SourceQuality "1"]
[TimeControl "40/5400+30:1800+30"]

{[%evp 25,142,8,33,0,0,0,0,-2,-4,0,-5,0,0,-56,-56,-67,-65,-81,-76,-67,-72,-72,-72,-66,-60,-59,-60,-70,-70,-70,-58,-61,-58,-62,-36,-53,-50,-54,-48,-50,-50,-59,-59,-59,-59,-59,-59,-59,-59,-59,-14,-14,-14,-14,-14,-14,-14,-14,-14,-14,0,0,0,0,0,0,0,0,0,-19,0,-8,0,0,0,0,0,-19,-19,-19,-8,-19,-19,-19,-19,-19,-19,-19,-19,-19,-19,-19,-19,-19,-8,-114,0,-18,0,0,0,0,0,0,0,0,0,0,0,0,0,0,0,0,0,0,0,0,0]} 1. Nf3 {[%emt 0:00:03]} Nf6 {[%emt 0:00:22]} 2. g3 {[%emt 0:00:55]} g6 {[%emt 0:01:31]} 3. Bg2 {[%emt 0:00:46]} Bg7 {[%emt 0:00:10]} 4. O-O {[%emt 0:00:28]} O-O {[%emt 0:00:20]} 5. c4 {[%emt 0:02:19]} d6 {[%emt 0:01:42]} 6. d4 {[%emt 0:00:37]} Nc6 {[%emt 0:01:36]} 7. d5 {[%emt 0:06:31]} Na5 {[%emt 0:01:51]} 8. Nfd2 {[%emt 0:00:16]} c5 {[%emt 0:01:33]} 9. Nc3 {[%emt 0:01:13]} a6 {[%emt 0:08:05]} 10. Qc2 {[%emt 0:05:10]} Rb8 {[%emt 0:00:48]} 11. Rb1 {[%emt 0:02:13]} b5 {[%emt 0:01:18]} 12. b3 {[%emt 0:02:33]} e6 {[%emt 0:08:47]} 13. Bb2 {[%emt 0:20:56]} Re8 {[%emt 0:18:46]} 14. dxe6 {[%emt 0:18:56] E66: King's Indian: Fianchetto: 6...c5 7 0-0 Nc6 8 d5.} Bxe6 {[%emt 0:00:10][%cal Rb5c4]} 15. cxb5 {[%emt 0:08:33]} axb5 {[%emt 0:05:34]} 16. Nce4 {[%emt 0:01:01] aiming for Nxf6+.} Bf5 {[%emt 0:07:26]} 17. Nxf6+ {[%emt 0:05:49]} Bxf6 {[%emt 0:00:17]} 18. e4 {[%emt 0:00:15]} Bd7 {[%emt 0:02:55] [#]} 19. Rbd1 $146 {[%emt 0:05:05]} (19. Bxf6 $11 Qxf6 20. b4) ({Predecessor:} 19. f4 Bg7 20. Bxg7 Kxg7 21. b4 Nb7 22. bxc5 dxc5 23. Qb2+ Kg8 24. e5 Bf5 25. Rbd1 {1-0 (40) Schmidt,T-Schwab,P ICCF corr 1996}) 19... Nc6 $15 {[%emt 0:01:05]} 20. Nf3 {[%emt 0:05:21]} Bg4 {[%emt 0:01:31]} 21. h3 {[%emt 0:04:00] Threatens to win with Bxf6.} Bxf3 {[%emt 0:01:10]} 22. Bxf3 {[%emt 0:00:03]} Bxb2 {[%emt 0:04:02]} 23. Qxb2 {[%emt 0:00:03]} Nd4 {[%emt 0:00:16]} 24. Bg2 {[%emt 0:00:26]} Qa5 {[%emt 0:07:40]} 25. f4 {[%emt 0:02:12]} b4 {[%emt 0:06:02]} 26. Rf2 {[%emt 0:00:47]} Re7 {[%emt 0:00:32]} 27. Kh2 {[%emt 0:01:33]} Qd8 {[%emt 0:00:40]} 28. Qc1 {[%emt 0:00:32]} Qf8 {[%emt 0:05:21]} 29. Qc4 {[%emt 0:01:20]} Qe8 {[%emt 0:03:34]} 30. Qd5 {[%emt 0:02:21]} Rd8 {[%emt 0:01:18]} 31. Rdd2 $1 {[%emt 0:01:02]} Nb5 {[%emt 0:01:12]} 32. e5 {[%emt 0:00:45][%cal Re5d6]} Red7 {[%emt 0:02:12] ...dxe5 is the strong threat.} ({Much weaker is} 32... Nc3 33. Qd3 $11) 33. Qc4 {[%emt 0:00:25]} Nd4 {[%emt 0:01:03]} 34. Rxd4 {[%emt 0:01:11]} cxd4 {[%emt 0:00:06]} 35. Bc6 {[%emt 0:00:06] [#]} dxe5 $1 {[%emt 0:00:53]} 36. fxe5 {[%emt 0:00:18] [#]} d3 $1 {[%emt 0:04:08]} 37. Rd2 {[%emt 0:00:33]} Qe7 {[%emt 0:01:08]} (37... Qxe5 $2 38. Bxd7 h5 39. h4 $1 $18 (39. Rxd3 Qe2+ 40. Kg1 Qe1+ 41. Kh2 Qf2+ 42. Kh1 Qf1+ 43. Kh2 Qf2+ 44. Kh1 Qf1+ 45. Kh2 Qf2+ $11)) (37... Rc8 $5 {[%cal Re8e5]} 38. Qb5 (38. Bxd7 $2 Rxc4 39. Bxe8 Rc2 $19) 38... Rxc6 $1 39. Qxc6 Qd8 $15) 38. Bxd7 {[%emt 0:00:06]} Rxd7 {[%emt 0:00:18]} 39. Rxd3 {[%emt 0:00:17]} Rxd3 {[%emt 0:00:20]} 40. Qxd3 {[%emt 0:00:04]} Qxe5 $11 {[%emt 0:00:07][%mdl 4096] Endgame KQ-KQ} 41. Qd2 {[%emt 0:32:14]} Qc3 {[%emt 0:30:53]} 42. Qe2 {[%emt 0:00:40]} g5 {[%emt 0:00:31]} 43. h4 {[%emt 0:00:00]} h6 {[%emt 0:00:00]} 44. hxg5 {[%emt 0:00:00]} hxg5 {[%emt 0:00:00]} 45. Kh3 {[%emt 0:00:00]} Qc8+ {[%emt 0:00:00]} 46. Kh2 {[%emt 0:00:00]} Qc5 {[%emt 0:00:00]} 47. Qd2 {[%emt 0:00:00]} Kg7 {[%emt 0:00:00]} 48. Qb2+ {[%emt 0:00:00]} Kg6 {[%emt 0:00:00]} 49. Qe2 {[%emt 0:00:00]} Qd4 {[%emt 0:00:00]} 50. Kh3 {[%emt 0:00:00]} Qd7+ {[%emt 0:00:00]} 51. Kh2 {[%emt 0:00:00]} f5 {[%emt 0:00:00]} 52. Qa6+ {[%emt 0:00:00]} Kg7 {[%emt 0:00:00] Threatening ...Qd2+.} 53. Qe2 {[%emt 0:00:00] Prevents Qd2.} Qd6 {[%emt 0:00:00]} 54. Kg2 {[%emt 0:00:00]} Kf6 {[%emt 0:00:00]} 55. Qb2+ {[%emt 0:00:00]} Kg6 {[%emt 0:00:00]} 56. Qc2 {[%emt 0:00:00]} Qd5+ {[%emt 0:00:00]} 57. Kh2 $1 {[%emt 0:00:00]} Qe4 {[%emt 0:00:00]} 58. Qd1 {[%emt 0:00:53]} Qe5 {[%emt 0:02:51]} 59. Qd2 {[%emt 0:05:21]} f4 {[%emt 0:04:00]} 60. g4 {[%emt 0:01:42] [#]} (60. Qd3+ $11 Kf6 61. Kg2) 60... Kh6 {[%emt 0:03:14]} (60... f3+ $1 $17 61. Kh3 Qh8+ 62. Kg3 Qh4+ 63. Kxf3 Qh3+ 64. Kf2 Qh2+ 65. Ke3 Qg3+ 66. Kd4 Qxg4+ 67. Kc5 Qf4) 61. Qc2 {[%emt 0:02:14] The position is equal.} Qc3 {[%emt 0:00:27]} 62. Qf5 {[%emt 0:00:37]} Qd2+ {[%emt 0:00:28]} 63. Kh1 {[%emt 0:00:13]} Qd6 {[%emt 0:00:23]} 64. Kg1 {[%emt 0:00:24]} Qe7 {[%emt 0:00:23]} 65. Kf1 {[%emt 0:00:27]} Kg7 {[%emt 0:00:07]} 66. Qd5 {[%emt 0:00:36]} Qf6 {[%emt 0:01:19]} 67. Qb7+ {[%emt 0:00:26]} Kh6 {[%emt 0:00:34] Hoping for ...Qa1+.} 68. Qh1+ {[%emt 0:00:30]} Kg7 {[%emt 0:00:23]} 69. Qb7+ {[%emt 0:00:04]} Kg6 {[%emt 0:00:49] White must now prevent ...Qa1+.} 70. Qxb4 {[%emt 0:00:45]} Qa1+ {[%emt 0:00:34]} 71. Qe1 {[%emt 0:00:07]} Qxa2 {[%emt 0:00:26] Weighted Error Value: White=0.10 (very precise) /Black=0.08 (flawless)} 1/2-1/2

[Event "FRA-ch Teams Top 16-A 2022"]
[Site "Chartres"]
[Date "2022.06.09"]
[Round "1.14"]
[White "Koch, Jean-Rene"]
[Black "Caille, Hugo"]
[Result "1/2-1/2"]
[ECO "A14"]
[WhiteElo "2441"]
[BlackElo "2177"]
[Annotator "TA"]
[PlyCount "42"]
[EventDate "2022.06.09"]
[EventType "team-tourn"]
[EventCountry "FRA"]
[SourceTitle "playchess.com"]
[Source "ChessBase"]
[SourceQuality "1"]
[TimeControl "40/5400+30:1800+30"]

{[%evp 11,42,-15,10,-10,15,-15,-21,-67,-72,-69,-41,-64,-45,-45,-50,-53,-33,-33,-47,-46,-46,-40,-55,-73,-42,-54,-39,-42,-32,-56,-65,-95,-69]} 1. c4 {[%emt 0:00:02]} e6 {[%emt 0:00:14]} 2. g3 {[%emt 0:02:06]} Nf6 {[%emt 0:00:20]} 3. Bg2 {[%emt 0:00:19]} d5 {[%emt 0:00:12]} 4. Nf3 {[%emt 0:00:33]} Be7 {[%emt 0:00:18]} 5. b3 {[%emt 0:01:55]} d4 {[%emt 0:00:25]} 6. O-O {[%emt 0:10:19]} O-O {[%emt 0:00:13]} 7. d3 {[%emt 0:04:51] A14: English Opening: 1...e6 with b3 by White.} Nc6 {[%emt 0:01:27]} 8. a3 {[%emt 0:05:58]} a5 $1 {[%emt 0:00:59] Inhibits b4.} 9. e4 {[%emt 0:02:17]} (9. e3 $11) 9... e5 $15 {[%emt 0:04:09] [#]} 10. Ra2 $146 {[%emt 0:03:18]} ({Predecessor:} 10. Bd2 Bg4 11. Ra2 Nd7 12. h3 Bxf3 13. Bxf3 Nc5 14. Qc2 Bg5 15. Be1 g6 16. Bg2 {0-1 (34) Handel,H-Zirngibl,A Schkopau 1958}) 10... Bd7 {[%emt 0:10:18]} 11. Ne1 {[%emt 0:06:00]} Qc8 {[%emt 0:03:41]} 12. f4 {[%emt 0:12:59]} Bg4 {[%emt 0:00:47]} 13. Qc2 {[%emt 0:05:39]} exf4 {[%emt 0:01:42]} 14. gxf4 {[%emt 0:01:10]} Nd7 {[%emt 0:10:57]} 15. h3 {[%emt 0:10:32]} Bh5 {[%emt 0:00:59]} 16. Nd2 {[%emt 0:01:05]} Nc5 {[%emt 0:02:17]} 17. Ndf3 {[%emt 0:01:34] Against Bh4} f5 {[%emt 0:04:08] Strongly threatening ...fxe4.} 18. e5 {[%emt 0:00:33]} Ne6 {[%emt 0:03:26]} 19. Kh1 {[%emt 0:03:30]} Qd7 {[%emt 0:01:37]} 20. Qf2 {[%emt 0:09:21]} Kh8 {[%emt 0:02:49]} 21. Ra1 {[%emt 0:01:24] [#]} Rab8 $1 {[%emt 0:02:45] Weighted Error Value: White=0.12 (very precise) /Black=0.10 (very precise)} 1/2-1/2

[Event "FRA-ch Teams Top 16-A 2022"]
[Site "Chartres"]
[Date "2022.06.09"]
[Round "1.15"]
[White "Da Silva, Quentin"]
[Black "Migot, Tangi"]
[Result "0-1"]
[ECO "B44"]
[WhiteElo "2171"]
[BlackElo "2353"]
[Annotator "TA"]
[PlyCount "92"]
[EventDate "2022.06.09"]
[EventType "team-tourn"]
[EventCountry "FRA"]
[SourceTitle "playchess.com"]
[Source "ChessBase"]
[SourceQuality "1"]
[TimeControl "40/5400+30:1800+30"]

{[%evp 24,92,27,8,0,0,19,0,36,0,10,18,6,25,16,-83,-93,-79,-73,-187,-187,-196,-192,-200,-197,-191,-198,-331,-335,-321,-317,-326,-327,-413,-413,-382,-314,-309,-268,-317,-311,-316,-321,-311,-311,-308,-289,-308,-302,-302,-268,-480,-351,-514,-305,-806,-802,-799,-771,-1163,-1108,-1154,-1145,-1036,-859,-1225,-1212,-1127,-1108,-907,-831]} 1. e4 {[%emt 0:00:18]} c5 {[%emt 0:00:06]} 2. Nf3 {[%emt 0:00:44][%cal Bg1f3,Bf3d4,Bd4b5][%mdl 32]} e6 {[%emt 0:00:48]} 3. d4 {[%emt 0:01:01]} cxd4 {[%emt 0:00:06]} 4. Nxd4 {[%emt 0:00:06]} Nc6 {[%emt 0:00:06]} 5. Nb5 {[%emt 0:01:45]} d6 {[%emt 0:00:14]} 6. c4 {[%emt 0:01:13]} Nf6 {[%emt 0:00:23]} 7. N1c3 {[%emt 0:01:25]} a6 {[%emt 0:00:35]} 8. Na3 {[%emt 0:01:31]} Be7 {[%emt 0:03:04]} 9. Be2 {[%emt 0:02:13]} b6 {[%emt 0:00:23]} 10. Be3 {[%emt 0:03:44]} Bb7 {[%emt 0:02:25]} 11. f3 {[%emt 0:03:01]} O-O {[%emt 0:01:34]} 12. O-O {[%emt 0:01:55]} Ne5 {[%emt 0:03:25]} 13. Rc1 {[%emt 0:15:25]} Re8 {[%emt 0:04:49] [#] B44: Sicilian: Taimanov: 5 Nb5.} 14. Re1 $146 {[%emt 0:06:39]} ({Predecessor:} 14. Qd4 Ned7 15. b4 a5 16. bxa5 d5 17. Nab5 e5 18. Qd2 d4 19. Nxd4 exd4 20. Bxd4 Rxa5 21. Nd5 {0-1 (39) Vatsal,S (2228)-Diermair,A (2501) Barcelona 2018}) 14... Rc8 {[%emt 0:15:04]} 15. Bf2 {[%emt 0:15:23]} Nh5 {[%emt 0:10:52] The position is equal.} 16. Na4 {[%emt 0:06:01]} Nd7 {[%emt 0:02:07]} 17. Bf1 {[%emt 0:06:53]} d5 {[%emt 0:17:03]} 18. exd5 {[%emt 0:07:15]} exd5 {[%emt 0:00:38]} 19. cxd5 {[%emt 0:02:55]} (19. Qb3 $11 {remains equal.}) 19... Rxc1 $17 {[%emt 0:01:43] Black converts the advantage convincingly.} 20. Qxc1 {[%emt 0:00:11] [#]} b5 $1 {[%emt 0:00:52]} 21. d6 {[%emt 0:03:42]} ({But not} 21. Nc3 b4 22. Nc4 bxc3 $17) (21. Nxb5 $17 axb5 22. Bxb5) 21... Bxd6 $19 {[%emt 0:01:30] And now ...Rxe1 would win.} 22. Rxe8+ {[%emt 0:00:44]} Qxe8 {[%emt 0:00:04]} 23. Nb6 {[%emt 0:07:05]} Nxb6 {[%emt 0:07:13]} 24. Bxb6 {[%emt 0:00:40]} Qb8 {[%emt 0:00:13][%cal Ob7f3] Threatens to win with ...Bxf3!} 25. Qg5 {[%emt 0:04:30]} (25. Kh1 $142) 25... Bxh2+ {[%emt 0:02:48]} 26. Kf2 {[%emt 0:00:18]} Bg3+ {[%emt 0:01:19]} 27. Kg1 {[%emt 0:01:07] [#]} Bxf3 {[%emt 0:07:36][%mdl 512]} 28. Qd8+ {[%emt 0:01:08]} (28. Bf2 Bxf2+) 28... Qxd8 {[%emt 0:00:06]} 29. Bxd8 {[%emt 0:00:04]} Bd5 {[%emt 0:01:05]} 30. Nc2 {[%emt 0:02:48]} Bd6 {[%emt 0:00:50] Prevents Nb4.} 31. b3 {[%emt 0:02:11]} Be4 {[%emt 0:00:14]} 32. Ne1 {[%emt 0:01:05]} Ng3 {[%emt 0:02:31] Strongly threatening ...Bc5+.} 33. Bd3 {[%emt 0:00:53]} Bxd3 {[%emt 0:00:06]} 34. Nxd3 {[%emt 0:00:06][%mdl 4096] Endgame KBN-KBN} Ne2+ {[%emt 0:00:09]} 35. Kf1 {[%emt 0:01:18]} Nc3 {[%emt 0:00:04]} 36. Nc1 {[%emt 0:00:37]} Ba3 {[%emt 0:03:32]} 37. Bg5 {[%emt 0:00:21]} (37. Ba5) 37... f6 {[%emt 0:05:44]} 38. Be3 {[%emt 0:00:36]} (38. Bd2 $142) 38... Kf7 {[%emt 0:00:37] Hoping for ...Bxc1.} 39. Ke1 $2 {[%emt 0:00:29]} (39. Bd4) 39... Bxc1 {[%emt 0:01:58] Black is clearly winning.} 40. Bxc1 {[%emt 0:00:05]} Nxa2 {[%emt 0:00:05] KB-KN} 41. Bd2 {[%emt 0:30:38]} b4 {[%emt 0:30:18]} 42. Ke2 {[%emt 0:00:00]} Ke6 {[%emt 0:00:00]} 43. Kd3 {[%emt 0:00:00]} Kd5 {[%emt 0:00:00] White must now prevent ...h5.} 44. Be1 {[%emt 0:00:00]} Nc3 {[%emt 0:00:00]} 45. Bd2 {[%emt 0:00:00]} a5 {[%emt 0:00:00][%cal Ba6a5,Ba5a4][%mdl 32]} 46. Be3 {[%emt 0:00:00]} a4 {[%emt 0:00:00] Weighted Error Value: White=0.72/Black=0.22 (precise)} 0-1

[Event "FRA-ch Teams Top 16-A 2022"]
[Site "Chartres"]
[Date "2022.06.09"]
[Round "1.16"]
[White "Rouzes, Sibylle-Anne"]
[Black "Dieuleveut, Floriane"]
[Result "0-1"]
[ECO "B56"]
[WhiteElo "1580"]
[BlackElo "1863"]
[Annotator "NA RC COMBH"]
[PlyCount "90"]
[EventDate "2022.06.09"]
[EventType "team-tourn"]
[EventCountry "FRA"]
[SourceTitle "playchess.com"]
[Source "ChessBase"]
[SourceQuality "1"]
[TimeControl "40/5400+30:1800+30"]

1. e4 {[%emt 0:00:01]} c5 {[%emt 0:00:10]} 2. Nf3 {[%emt 0:00:25]} Nc6 {[%emt 0:00:14]} 3. d4 {[%emt 0:00:31]} cxd4 {[%emt 0:00:07]} 4. Nxd4 {[%emt 0:00:05]} g6 {[%emt 0:00:12]} 5. Nxc6 {[%emt 0:10:39]} bxc6 {[%emt 0:00:43]} 6. Bd3 {[%emt 0:01:47]} Bg7 {[%emt 0:01:39]} 7. O-O {[%emt 0:02:43]} Nf6 {[%emt 0:08:19]} 8. Nc3 {[%emt 0:05:35]} d6 {[%emt 0:09:40]} 9. Bd2 {[%emt 0:12:16]} O-O {[%emt 0:05:12]} 10. h3 {[%emt 0:20:49]} Be6 {[%emt 0:21:30]} 11. b3 {[%emt 0:07:46]} Nd7 {[%emt 0:25:57]} 12. Rb1 {[%emt 0:08:54]} Nc5 {[%emt 0:00:26]} 13. Qc1 {[%emt 0:11:36]} Qb6 {[%emt 0:06:21]} 14. Na4 {[%emt 0:05:09]} Nxa4 {[%emt 0:01:14]} 15. bxa4 {[%emt 0:00:11]} Qc7 {[%emt 0:00:39]} 16. Qa3 {[%emt 0:03:50]} Rab8 {[%emt 0:02:10]} 17. c4 {[%emt 0:01:12]} Rxb1 {[%emt 0:02:28]} 18. Rxb1 {[%emt 0:00:06]} Rb8 {[%emt 0:00:55]} 19. Rb3 {[%emt 0:01:19]} Bd4 {[%emt 0:01:33]} 20. Qc1 {[%emt 0:01:21]} Rxb3 {[%emt 0:01:51]} 21. axb3 {[%emt 0:00:09]} Qb6 {[%emt 0:00:13]} 22. b4 {[%emt 0:03:49]} Bxf2+ {[%emt 0:00:24]} 23. Kf1 {[%emt 0:00:19]} Bd4 {[%emt 0:01:06]} 24. Qd1 {[%emt 0:01:08]} Qa6 {[%emt 0:03:28]} 25. Qc2 {[%emt 0:00:25]} Qc8 {[%emt 0:01:28]} 26. Qd1 {[%emt 0:00:24]} Bxh3 {[%emt 0:01:59]} 27. Qf3 {[%emt 0:00:48]} Bg4 {[%emt 0:01:31]} 28. Qg3 {[%emt 0:00:29]} Qe6 {[%emt 0:01:32]} 29. Ke1 {[%emt 0:00:39]} Be5 {[%emt 0:00:34]} 30. Qf2 {[%emt 0:00:12]} Qf6 {[%emt 0:00:51]} 31. Qxf6 {[%emt 0:00:50]} Bxf6 {[%emt 0:00:07]} 32. Be3 {[%emt 0:00:25]} Bc3+ {[%emt 0:00:07]} 33. Bd2 {[%emt 0:00:24]} Bxd2+ {[%emt 0:00:25]} 34. Kxd2 {[%emt 0:00:03]} Bc8 {[%emt 0:01:44]} 35. b5 {[%emt 0:01:04]} cxb5 {[%emt 0:00:33]} 36. cxb5 {[%emt 0:00:36]} Kf8 {[%emt 0:00:25]} 37. Bc4 {[%emt 0:00:26]} Ke8 {[%emt 0:00:32]} 38. Bd5 {[%emt 0:00:25]} e6 {[%emt 0:00:28]} 39. Bc6+ {[%emt 0:00:26]} Kd8 {[%emt 0:00:28]} 40. Kc3 {[%emt 0:00:33]} Kc7 {[%emt 0:00:33]} 41. Be8 {[%emt 0:30:35]} f6 {[%emt 0:30:28]} 42. Kc4 {[%emt 0:00:34]} Bb7 {[%emt 0:00:00]} 43. Kd4 {[%emt 0:00:00]} e5+ {[%emt 0:00:00]} 44. Ke3 {[%emt 0:00:00]} Kb6 {[%emt 0:00:00]} 45. Bf7 {[%emt 0:00:00]} Ka5 {[%emt 0:00:00]} 0-1

[Event "FRA-ch Teams Top 16-A 2022"]
[Site "Chartres"]
[Date "2022.06.09"]
[Round "1.17"]
[White "Mamedov, Rauf"]
[Black "Alonso Rosell, Alvar"]
[Result "1-0"]
[ECO "C54"]
[WhiteElo "2656"]
[BlackElo "2557"]
[Annotator "TA"]
[PlyCount "151"]
[EventDate "2022.06.09"]
[EventType "team-tourn"]
[EventCountry "FRA"]
[SourceTitle "playchess.com"]
[Source "ChessBase"]
[SourceQuality "1"]
[TimeControl "40/5400+30:1800+30"]

{[%evp 11,151,13,22,4,14,8,23,20,27,9,13,0,0,0,0,0,0,0,0,0,0,0,0,0,0,0,16,19,32,20,20,8,16,19,29,27,81,81,74,82,91,40,45,28,31,36,37,39,40,30,29,30,70,33,147,77,99,87,137,136,156,129,108,106,170,166,151,83,93,94,88,87,87,91,90,85,80,81,87,83,121,127,120,85,84,66,76,49,49,51,57,57,54,8,79,63,44,34,83,83,97,89,81,78,81,79,75,64,69,59,64,63,66,65,87,60,65,0,28,28,65,65,75,104,110,104,747,703,744,708,683,664,1162,1058,1060,1250,12843,12843,12845,2104,12844,12844]} 1. e4 {[%emt 0:00:07]} e5 {[%emt 0:00:04]} 2. Nf3 {[%emt 0:00:22]} Nc6 {[%emt 1:31:26]} 3. Bc4 {[%emt 0:01:23]} Nf6 {[%emt 0:00:00]} 4. d3 {[%emt 0:00:16]} Bc5 {[%emt 0:00:00]} 5. c3 {[%emt 0:00:23]} d6 {[%emt 0:00:00]} 6. Nbd2 {[%emt 0:00:21][%cal Bb1d2,Bd2f1,Bf1e3,Be3c4][%mdl 32]} O-O {[%emt 0:00:00]} 7. h3 {[%emt 0:01:13] C54: Giuoco Piano: 4 c3 Nf6, main lines with 5 d4 and 5 d3.} Re8 {[%emt 0:00:00]} 8. O-O {[%emt 0:01:30]} h6 {[%emt 0:00:00]} 9. Re1 {[%emt 0:00:17] White has an edge.} a6 {[%emt 0:00:00]} 10. Bb3 {[%emt 0:04:53]} Be6 {[%emt 0:00:00]} 11. Nf1 $1 {[%emt 0:07:33] The main line 11.Nf1 scores better than 11.Bc2.} Bxb3 {[%emt 0:00:00]} 12. Qxb3 {[%emt 0:00:49]} Qd7 {[%emt 0:00:00]} 13. Be3 {[%emt 0:04:22]} Bxe3 {[%emt 0:00:00]} 14. Nxe3 {[%emt 0:00:06]} Ne7 {[%emt 0:00:00]} 15. Nh4 {[%emt 0:16:59]} ({Wrong is} 15. Qxb7 $2 Reb8 16. Qxa8 Rxa8 $19) 15... c6 {[%emt 0:00:00] [#]} 16. Nc4 $146 {[%emt 0:15:41]} ({Predecessor:} 16. Qb6 d5 17. Rad1 Rad8 18. a4 Nc8 19. Qb4 Qc7 20. exd5 cxd5 21. Nhf5 Qd7 22. d4 {½-½ (40) Herzog,K (1953)-Friedrich,G (1940) GER email 2017}) 16... Qc7 {[%emt 0:00:00]} 17. a4 {[%emt 0:00:11]} b5 {[%emt 0:00:00]} 18. Ne3 {[%emt 0:02:19]} Nd7 {[%emt 0:00:00]} 19. d4 {[%emt 0:03:57]} Nb6 {[%emt 0:00:00]} (19... Nf6 {seems wilder.} 20. Nef5 Rad8 21. axb5 axb5 22. Qc2 Nxf5 23. Nxf5 Kh7) 20. axb5 {[%emt 0:04:08]} (20. a5 {with more complications.} Nd7 21. Nhf5 Nf6 22. dxe5 dxe5 23. c4) 20... axb5 {[%emt 0:00:00]} 21. dxe5 {[%emt 0:05:27]} dxe5 {[%emt 0:00:00]} 22. Qb4 {[%emt 0:00:05]} Rab8 {[%emt 0:00:00]} 23. Red1 {[%emt 0:09:27]} Nd7 {[%emt 0:05:38]} (23... Kh7 $11 {remains equal.}) 24. Nhf5 $16 {[%emt 0:04:24]} Nxf5 {[%emt 0:00:08]} 25. Nxf5 {[%emt 0:00:17]} Nf6 {[%emt 0:00:22]} 26. Qc5 {[%emt 0:07:59] White is much more active.} ({White should try} 26. Qd6 $16 Qxd6 27. Nxd6) 26... Nxe4 $14 {[%emt 0:03:30]} 27. Qe3 {[%emt 0:00:04]} Ng5 {[%emt 0:01:55]} 28. h4 {[%emt 0:01:17]} Ne6 {[%emt 0:00:02]} 29. Ra7 $36 {[%emt 0:00:06][%mdl 2048] White fights for an advantage.} Rb7 {[%emt 0:00:54]} 30. Rxb7 {[%emt 0:01:09]} Qxb7 {[%emt 0:00:01]} 31. Qxe5 {[%emt 0:00:05]} Qa7 {[%emt 0:01:04]} 32. Rd6 {[%emt 0:01:08]} Qc5 {[%emt 0:00:34]} ({Less strong is} 32... Qa1+ 33. Kh2 Qa7 34. Rxc6 $16) (32... c5 $1 $14) 33. Qxc5 {[%emt 0:03:16]} ({White should play} 33. Qe4) 33... Nxc5 $16 {[%emt 0:00:01][%mdl 4096] Endgame KRN-KRN} 34. b4 {[%emt 0:00:15]} Na4 {[%emt 0:01:11]} (34... Re1+ $142 35. Kh2 Re5) 35. Rxc6 {[%emt 0:00:08]} Re1+ {[%emt 0:00:04]} 36. Kh2 {[%emt 0:00:03]} Rc1 {[%emt 0:00:05]} 37. Ne7+ {[%emt 0:03:42]} Kh7 {[%emt 0:00:05]} (37... Kf8 $16 38. Rc7 (38. Nd5 Ke8 $16) 38... Nxc3) 38. Nd5 $18 {[%emt 0:00:06]} Rc2 {[%emt 0:00:48] [#]} 39. Kg3 {[%emt 0:02:34]} (39. f3 $142 $1) 39... Rd2 $16 {[%emt 0:00:38]} 40. Ne3 {[%emt 0:00:22]} Rd3 {[%emt 0:00:23]} 41. c4 {[%emt 0:30:06]} bxc4 {[%emt 0:31:06]} 42. Rxc4 {[%emt 0:00:00]} Rb3 {[%emt 0:00:00]} 43. Rf4 {[%emt 0:00:00]} Kg8 {[%emt 0:00:00]} 44. Kh2 {[%emt 0:00:00]} Nc3 {[%emt 0:00:00]} 45. h5 {[%emt 0:00:00]} Rb2 {[%emt 0:00:00]} 46. Rc4 {[%emt 0:00:00]} Nb5 {[%emt 0:00:00]} 47. f3 {[%emt 0:00:00]} g6 {[%emt 0:00:00]} 48. Ng4 {[%emt 0:01:49]} Kg7 {[%emt 0:00:00]} 49. Ne5 {[%emt 0:00:55]} gxh5 {[%emt 0:00:00]} 50. Nd3 {[%emt 0:00:29]} Rd2 {[%emt 0:00:00]} 51. Nf4 {[%emt 0:00:08]} Nd6 {[%emt 0:00:00]} 52. Rc7 {[%emt 0:02:11]} (52. Nxh5+ $14 Kg6 53. Rc5) 52... Nf5 {[%emt 0:00:00]} (52... h4 $11) 53. Nxh5+ {[%emt 0:00:20]} Kg6 {[%emt 0:00:00]} 54. Rc5 {[%emt 0:01:37][%cal Ob4b5]} Nd4 {[%emt 0:00:00]} (54... Rd4 $14 {was preferrable.}) 55. Nf4+ {[%emt 0:00:08]} Kg7 {[%emt 0:00:00]} 56. Kg3 {[%emt 0:00:22] And now Rd5 would win.} Rb2 {[%emt 0:00:00]} 57. Rc4 {[%emt 0:00:59]} Nf5+ {[%emt 0:00:00]} 58. Kh3 {[%emt 0:00:04]} Rb1 {[%emt 0:00:00]} 59. g4 {[%emt 0:01:19]} Nd6 {[%emt 0:00:00]} 60. Rc6 {[%emt 0:00:11]} Nb5 {[%emt 0:00:14]} 61. Nh5+ {[%emt 0:00:17]} Kf8 $1 {[%emt 0:00:48]} 62. Rxh6 {[%emt 0:00:57]} Rxb4 {[%emt 0:02:16]} 63. f4 {[%emt 0:00:03]} Nd4 {[%emt 0:01:09]} 64. f5 {[%emt 0:00:36]} (64. Ra6 $14) 64... Nf3 {[%emt 0:00:50]} 65. Ra6 {[%emt 0:00:17]} Rb3 {[%emt 0:01:55]} 66. Kg3 {[%emt 0:00:22]} Nd2+ {[%emt 0:00:33]} 67. Kf4 {[%emt 0:00:03]} Rb4+ {[%emt 0:04:22] [#]} 68. Kg5 $1 {[%emt 0:00:10] Ra8+ is the strong threat.} Ke7 $2 {[%emt 0:01:21][%mdl 8192] This move loses the game for Black.} (68... Nf3+ $16 69. Kf6 Rb8) 69. Nf6 $18 {[%emt 0:01:26] Black must now prevent Nd5+. White is clearly winning.} Nf3+ {[%emt 0:01:00]} 70. Kh6 {[%emt 0:00:04] aiming for Nd5+.} Rb5 {[%emt 0:00:32] Inhibits Nd5+.} 71. Kg7 {[%emt 0:00:18]} Nd4 {[%emt 0:00:23][%cal Od4e6]} 72. Ng8+ {[%emt 0:00:29]} Ke8 {[%emt 0:00:36]} 73. Nh6 {[%emt 0:00:31]} Rb4 {[%emt 0:00:31]} 74. Nxf7 {[%emt 0:00:43]} Nf3 {[%emt 0:00:30]} 75. g5 {[%emt 0:00:17]} (75. Rd6 $142 Rxg4+ 76. Kf6) 75... Nh4 {[%emt 0:00:24]} 76. Kf6 {[%emt 0:00:41] Weighted Error Value: White=0.09 (flawless) /Black=0.12 (very precise)} 1-0